[Event "Masters Tournament (MTO)"]
[Site "Biel, Switzerland"]
[Date "2026.07.23"]
[Round "10.42"]
[White "Petry, Martin"]
[Black "Alsaleh, Eissa"]
[Result "1-0"]
[TimeControl "100+30+30sec/move"]
[WhiteTitle "-"]
[BlackTitle "-"]
[WhiteFideId "1352318"]
[BlackFideId "10312463"]
[WhiteElo "1999"]
[BlackElo "1908"]

1. Nf3 {[%clk 01:40:51]} {[%emt 00:00:07]} Nf6 {[%clk 01:40:43]} {[%emt
00:00:17]} 2. g3 {[%clk 01:41:15]} {[%emt 00:00:06]} g6 {[%clk 01:41:08]}
{[%emt 00:00:06]} 3. Bg2 {[%clk 01:41:41]} {[%emt 00:00:04]} Bg7 {[%clk
01:41:33]} {[%emt 00:00:05]} 4. O-O {[%clk 01:42:04]} {[%emt 00:00:07]} O-O
{[%clk 01:41:54]} {[%emt 00:00:10]} 5. d4 {[%clk 01:42:18]} {[%emt 00:00:16]}
d6 {[%clk 01:42:10]} {[%emt 00:00:13]} 6. b3 {[%clk 01:42:39]} {[%emt
00:00:09]} c5 {[%clk 01:42:03]} {[%emt 00:00:37]} 7. c4 {[%clk 01:43:01]}
{[%emt 00:00:09]} Nc6 {[%clk 01:41:47]} {[%emt 00:00:46]} 8. Bb2 {[%clk
01:43:23]} {[%emt 00:00:08]} Qc7 {[%clk 01:39:28]} {[%emt 00:02:49]} 9. Nc3
{[%clk 01:38:06]} {[%emt 00:05:47]} a6 {[%clk 01:37:14]} {[%emt 00:02:43]} 10.
d5 {[%clk 01:32:41]} {[%emt 00:05:55]} Na5 {[%clk 01:36:53]} {[%emt 00:00:51]}
11. Qd3 {[%clk 01:30:17]} {[%emt 00:02:55]} Bf5 {[%clk 01:34:22]} {[%emt
00:03:01]} 12. Qd2 {[%clk 01:29:29]} {[%emt 00:01:17]} Rab8 {[%clk 01:27:06]}
{[%emt 00:07:46]} 13. Nh4 {[%clk 01:24:43]} {[%emt 00:05:16]} Bd7 {[%clk
01:26:19]} {[%emt 00:01:16]} 14. Nd1 {[%clk 01:24:36]} {[%emt 00:00:38]} b5
{[%clk 01:24:31]} {[%emt 00:02:18]} 15. Bc3 {[%clk 01:23:59]} {[%emt 00:01:07]}
b4 {[%clk 01:19:08]} {[%emt 00:05:53]} 16. Bb2 {[%clk 01:23:38]} {[%emt
00:00:52]} Nb7 {[%clk 01:16:03]} {[%emt 00:03:34]} 17. f4 {[%clk 01:20:57]}
{[%emt 00:03:11]} h6 {[%clk 01:13:31]} {[%emt 00:03:01]} 18. e4 {[%clk
01:19:07]} {[%emt 00:02:21]} a5 {[%clk 01:08:14]} {[%emt 00:05:48]} 19. Nf2
{[%clk 01:05:52]} {[%emt 00:13:44]} a4 {[%clk 01:02:05]} {[%emt 00:06:40]} 20.
Rae1 {[%clk 01:03:04]} {[%emt 00:03:18]} axb3 {[%clk 01:00:41]} {[%emt
00:01:53]} 21. axb3 {[%clk 01:03:07]} {[%emt 00:00:27]} Ne8 {[%clk 00:54:08]}
{[%emt 00:07:02]} 22. e5 {[%clk 01:01:49]} {[%emt 00:01:49]} Na5 {[%clk
00:42:03]} {[%emt 00:12:35]} 23. Qc2 {[%clk 00:48:26]} {[%emt 00:13:53]} g5
{[%clk 00:35:59]} {[%emt 00:06:34]} 24. Nf3 {[%clk 00:45:24]} {[%emt 00:03:32]}
gxf4 {[%clk 00:27:39]} {[%emt 00:08:50]} 25. gxf4 {[%clk 00:45:41]} {[%emt
00:00:13]} Qc8 {[%clk 00:26:59]} {[%emt 00:01:10]} 26. Nd2 {[%clk 00:40:43]}
{[%emt 00:05:28]} e6 {[%clk 00:23:17]} {[%emt 00:04:12]} 27. Qd3 {[%clk
00:28:36]} {[%emt 00:12:37]} exd5 {[%clk 00:20:42]} {[%emt 00:03:05]} 28. Bxd5
{[%clk 00:27:48]} {[%emt 00:01:18]} Bc6 {[%clk 00:19:20]} {[%emt 00:01:52]} 29.
Kh1 {[%clk 00:19:06]} {[%emt 00:09:12]} Qb7 {[%clk 00:13:29]} {[%emt 00:06:21]}
30. Nfe4 {[%clk 00:17:04]} {[%emt 00:02:32]} Nc7 {[%clk 00:10:16]} {[%emt
00:03:43]} 31. Nxd6 {[%clk 00:13:58]} {[%emt 00:03:36]} Nxd5 {[%clk 00:08:56]}
{[%emt 00:01:50]} 32. cxd5 {[%clk 00:06:23]} {[%emt 00:08:05]} Bxd5+ {[%clk
00:07:52]} {[%emt 00:01:33]} 33. Kg1 {[%clk 00:06:16]} {[%emt 00:00:38]} Qc6
{[%clk 00:06:49]} {[%emt 00:01:33]} 34. Re3 {[%clk 00:06:09]} {[%emt 00:00:37]}
Nxb3 {[%clk 00:03:34]} {[%emt 00:03:46]} 35. Nf5 {[%clk 00:03:04]} {[%emt
00:03:34]} c4 {[%clk 00:01:06]} {[%emt 00:02:58]} 36. Qc2 {[%clk 00:01:22]}
{[%emt 00:02:13]} Kh8 {[%clk 00:00:40]} {[%emt 00:00:56]} 37. Nxb3 {[%clk
00:00:41]} {[%emt 00:01:10]} cxb3 {[%clk 00:00:45]} {[%emt 00:00:25]} 38. Qxc6
{[%clk 00:00:34]} {[%emt 00:00:37]} Bxc6 {[%clk 00:01:02]} {[%emt 00:00:13]} 39.
Rg3 {[%clk 00:00:39]} {[%emt 00:00:24]} Rg8 {[%clk 00:00:34]} {[%emt 00:01:00]}
40. Nxg7 {[%clk 00:01:05]} {[%emt 00:00:02]} Rxg7 {[%clk 00:00:52]} {[%emt
00:00:13]} 41. e6 {[%clk 00:01:07]} {[%emt 00:00:28]} Rbg8 {[%clk 00:00:43]}
{[%emt 00:00:40]} 42. exf7 {[%clk 00:01:15]} {[%emt 00:00:21]} 1-0

[Event "Masters Tournament (MTO)"]
[Site "Biel, Switzerland"]
[Date "2026.07.23"]
[Round "10.43"]
[White "Magnussen, Petur Gardar"]
[Black "Rosen, Noah"]
[Result "1-0"]
[TimeControl "100+30+30sec/move"]
[WhiteTitle "-"]
[BlackTitle "-"]
[WhiteFideId "7203802"]
[BlackFideId "1356267"]
[WhiteElo "1957"]
[BlackElo "1921"]

1. e4 {[%clk 01:40:58]} {[%emt 00:00:02]} e5 {[%clk 01:40:53]} {[%emt
00:00:07]} 2. Nf3 {[%clk 01:41:24]} {[%emt 00:00:05]} Nc6 {[%clk 01:41:16]}
{[%emt 00:00:06]} 3. Bc4 {[%clk 01:41:48]} {[%emt 00:00:07]} Bc5 {[%clk
01:41:34]} {[%emt 00:00:11]} 4. c3 {[%clk 01:42:08]} {[%emt 00:00:11]} Nf6
{[%clk 01:41:53]} {[%emt 00:00:10]} 5. d3 {[%clk 01:42:43]} {[%emt 00:00:20]}
O-O 6. Nbd2 {[%clk 01:43:01]} {[%emt 00:01:31]} d5 {[%clk 01:41:21]} 7. exd5
{[%clk 01:43:01]} Nxd5 {[%clk 01:41:43]} {[%emt 00:00:27]} 8. O-O {[%clk
01:42:42]} {[%emt 00:00:31]} Bg4 9. Ne4 {[%clk 01:38:36]} {[%emt 00:03:09]} Bb6
{[%clk 01:34:43]} 10. a4 a5 {[%clk 01:40:03]} 11. Re1 {[%clk 01:38:36]} h6
{[%emt 00:50:10]} 12. Bxh6 {[%clk 01:09:14]} {[%emt 00:21:19]} Nxc3 {[%clk
01:02:10]} 13. bxc3 {[%clk 01:09:14]} gxh6 {[%clk 01:02:10]} {[%emt 00:04:11]}
14. h3 {[%clk 01:02:18]} {[%emt 00:07:25]} Bh5 {[%clk 01:01:38]} {[%emt
00:01:02]} 15. Ng3 {[%clk 01:00:09]} {[%emt 00:02:40]} Bg6 {[%clk 00:57:48]}
{[%emt 00:04:20]} 16. Bb5 {[%clk 00:44:04]} {[%emt 00:16:35]} Re8 {[%clk
00:32:10]} {[%emt 00:26:08]} 17. Qd2 {[%clk 00:32:18]} {[%emt 00:12:15]} Kh7
{[%clk 00:25:18]} {[%emt 00:07:22]} 18. Bxc6 {[%clk 00:31:26]} {[%emt
00:01:22]} bxc6 {[%clk 00:25:40]} {[%emt 00:00:08]} 19. Nxe5 {[%clk 00:31:07]}
{[%emt 00:00:49]} Qh4 {[%clk 00:19:38]} {[%emt 00:06:32]} 20. Kh2 {[%clk
00:24:29]} {[%emt 00:07:09]} Re6 {[%clk 00:15:37]} {[%emt 00:04:31]} 21. f4
{[%clk 00:17:53]} {[%emt 00:07:06]} f5 {[%clk 00:04:21]} {[%emt 00:11:46]} 22.
Nxg6 {[%clk 00:10:43]} {[%emt 00:07:39]} Rxg6 {[%clk 00:04:49]} {[%emt
00:00:02]} 23. Nxf5 {[%clk 00:09:42]} {[%emt 00:01:31]} Qf6 {[%clk 00:05:16]}
{[%emt 00:00:04]} 24. Ng3 {[%clk 00:03:39]} {[%emt 00:06:33]} Rag8 {[%clk
00:05:10]} {[%emt 00:00:36]} 25. Ne4 {[%clk 00:02:40]} {[%emt 00:01:29]} Qh4
{[%clk 00:04:02]} {[%emt 00:01:38]} 26. Re2 {[%clk 00:02:27]} {[%emt 00:00:43]}
Kh8 {[%clk 00:03:00]} {[%emt 00:01:32]} 27. Rf1 {[%clk 00:02:11]} {[%emt
00:00:45]} h5 {[%clk 00:02:15]} {[%emt 00:01:15]} 28. f5 {[%clk 00:01:44]}
{[%emt 00:00:57]} R6g7 {[%clk 00:00:37]} {[%emt 00:02:09]} 29. Qh6+ {[%clk
00:02:07]} {[%emt 00:00:07]} Rh7 {[%clk 00:01:02]} {[%emt 00:00:05]} 30. Qf6+
{[%clk 00:02:25]} {[%emt 00:00:11]} Qxf6 {[%clk 00:01:18]} {[%emt 00:00:14]} 31.
Nxf6 {[%clk 00:02:54]} {[%emt 00:00:02]} Rd8 {[%clk 00:01:28]} {[%emt
00:00:20]} 32. Nxh7 {[%clk 00:03:06]} {[%emt 00:00:18]} Kxh7 {[%clk 00:01:53]}
{[%emt 00:00:04]} 33. d4 {[%clk 00:01:21]} {[%emt 00:02:15]} Kg7 {[%clk
00:02:12]} {[%emt 00:00:12]} 34. f6+ {[%clk 00:01:37]} {[%emt 00:00:14]} Kf7
{[%clk 00:02:37]} {[%emt 00:00:04]} 35. Re7+ {[%clk 00:01:56]} {[%emt
00:00:11]} Kf8 {[%clk 00:03:01]} {[%emt 00:00:07]} 36. Rh7 {[%clk 00:02:12]}
{[%emt 00:00:13]} Kg8 {[%clk 00:02:44]} {[%emt 00:00:48]} 37. Rxh5 {[%clk
00:02:25]} {[%emt 00:00:16]} Rd7 {[%clk 00:02:43]} {[%emt 00:00:31]} 38. f7+
{[%clk 00:02:35]} {[%emt 00:00:20]} Rxf7 {[%clk 00:03:06]} {[%emt 00:00:08]} 39.
Rxf7 {[%clk 00:03:03]} {[%emt 00:00:02]} Kxf7 {[%clk 00:03:31]} {[%emt
00:00:05]} 40. g4 {[%clk 00:03:22]} {[%emt 00:00:10]} c5 {[%clk 00:03:10]}
{[%emt 00:00:52]} 41. dxc5 {[%clk 00:03:43]} {[%emt 00:00:09]} Ba7 {[%clk
00:03:26]} {[%emt 00:00:13]} 42. Kg3 {[%clk 00:03:53]} {[%emt 00:00:19]} Kg6
{[%clk 00:03:50]} {[%emt 00:00:07]} 43. Rf5 {[%clk 00:04:07]} {[%emt 00:00:16]}
c6 {[%clk 00:04:08]} {[%emt 00:00:12]} 44. h4 {[%clk 00:04:28]} {[%emt
00:00:09]} Bb8+ {[%clk 00:04:33]} {[%emt 00:00:06]} 45. Kf3 {[%clk 00:04:51]}
{[%emt 00:00:06]} Bh2 {[%clk 00:04:42]} {[%emt 00:00:20]} 46. h5+ {[%clk
00:04:50]} {[%emt 00:00:32]} Kh6 {[%clk 00:04:54]} {[%emt 00:00:18]} 47. Rf6+
{[%clk 00:05:05]} {[%emt 00:00:14]} Kg5 {[%clk 00:05:07]} {[%emt 00:00:18]} 48.
Rg6+ {[%clk 00:05:22]} {[%emt 00:00:14]} Kh4 {[%clk 00:05:29]} {[%emt
00:00:07]} 49. h6 {[%clk 00:05:36]} {[%emt 00:00:16]} Be5 {[%clk 00:05:00]}
{[%emt 00:00:58]} 50. h7 {[%clk 00:05:53]} {[%emt 00:00:14]} Kh3 {[%clk
00:04:35]} {[%emt 00:00:55]} 51. Rh6 {[%clk 00:06:13]} {[%emt 00:00:10]} 1-0